Cogmind - Beta 13 @@@ ROGUE MODE // 2024.04.11 @ 20:13:24 Player: Exceptionally Mediocre Result: Destroyed by C-35 Carver with Carbide Saw Performance ------------- Evolutions (5) 2500 Regions Visited (15) 3000 Robots Destroyed (215) 1075 Value Destroyed (7515) 7515 Prototype IDs (38) 760 Alien Tech Used (0) 0 Bonus (-977) -977 TOTAL SCORE: 13873 Bonus ------- High Alert Combat Kills 247 Follower Combat Kills 117 Entered Garrisons 400 Aligned with FarCom 300 Met Data Miner 300 Friendly Fire -2341 Cogmind --------- Core Integrity 0/1000 Matter 8/300 Energy 100/100 System Corruption 6% Temperature Cool (0) Movement Core (700) Ox13 Location -5/Garrison Parts ------- > --- POWER (2) -------- (None) > --- PROPULSION (4) --- (None) > --- UTILITY (8) ------ High-capacity Storage Unit > --- WEAPON (3) ------- (None) > --- INVENTORY (20) --- VTOL Module Matter Compressor (0) Advanced Sensor Array Weapon Cycler Improved Weapon Shielding Plasma Rifle Plasma Rifle Linear Accelerator Rocket Array Long-range Missile Launcher Micro-nuke Launcher Peak State ------------ > --- POWER ------------ Particle Reactor > --- PROPULSION ------- Armored Heavy Treads Advanced Heavy Treads > --- UTILITY ---------- Advanced Heat Sink Humpback Experimental Optical Array Improved Weapon Shielding Graphene Brace Improved Remote Force Field > --- WEAPON ----------- Quantum Rifle Linear Accelerator Linear Accelerator > --- INVENTORY -------- Backup Power III Backup Power III Micro Nuclear Core Light Angular Momentum Engine Light Particle Reactor High-capacity Storage Unit Experimental Optical Array Improved Sensor Array Kinecellerator Makeshift Transmission Jammer Medium Insulated Plating Focal Shield Focal Shield Thermal Shield High-powered Shock Rifle Plasma Rifle Plasma Rifle Plasma Rifle Heavy Proton Missile Launcher Heavy Proton Missile Launcher Rocket Array Rocket Array Long-range Missile Launcher Long-range Missile Launcher Micro-nuke Launcher Micro-nuke Launcher Blade Saw [Rating: 110] Favorites ----------- Power Light Nuclear Core Engine Reinforced Deuterium Engine Power Core Light Nuclear Core Reactor Particle Reactor Propulsion Wheel Treads Armored Heavy Treads Leg Improved Carbon-fiber Leg Wheel Wheel Hover Unit Combat Airjet Utility Humpback Device Graphene Brace Storage Humpback Processor Salvage Targeting Computer Hackware Improved Hacking Suite Protection Improved Utility Shielding Weapon Heavy Machine Gun Energy Gun Plasma Rifle Energy Cannon Firepult Ballistic Gun Heavy Machine Gun Ballistic Cannon Linear Accelerator Launcher Heavy Rocket Launcher Impact Weapon Great Maul Slashing Weapon Falx Build | -11 -10 -10 -10 -9 -8 -7 -7 -7 -7 -6 -6 -6 -6 -5 -5 ------- Run | Yrd Mat Min Exi Min Mat Fac Low Low Dat Pro Fac Gar Fac Fac Gar Slots Evolved 10 | . . . . . 4 2 . . . . 2 . . 2 . Power 1 | . . . . . . . . . . . . . . 1 . Propulsion 2 | . . . . . 1 1 . . . . . . . . . Utility 6 | . . . . . 2 1 . . . . 2 . . 1 . Weapon 1 | . . . . . 1 . . . . . . . . . . Parts Attached 277 | 8 6 2 1 11 80 23 2 4 . 51 6 24 44 5 10 Power 27 | 1 1 . . . 11 . . . . 5 . 3 4 1 1 Engine 14 | 1 1 . . . 7 . . . . 1 . 3 . 1 . Core 9 | . . . . . 4 . . . . 4 . . . . 1 Reactor 4 | . . . . . . . . . . . . . 4 . . Propulsion 65 | 2 . . . 3 31 8 2 1 . 12 1 2 2 . 1 Treads 10 | . . . . . 2 . 1 . . 2 . 2 2 . 1 Leg 3 | . . . . . 3 . . . . . . . . . . Wheel 48 | 2 . . . 3 25 8 1 1 . 7 1 . . . . Hover 4 | . . . . . 1 . . . . 3 . . . . . Flight . | . . . . . . . . . . . . . . . . Utility 93 | 2 3 1 1 . 10 12 . . . 20 5 11 22 4 2 Device 33 | 1 . . . . . 8 . . . 7 1 6 7 3 . Storage 18 | 1 2 1 1 . 1 2 . . . 3 1 . 4 1 1 Processor 6 | . . . . . 3 . . . . . . . 2 . 1 Hackware 1 | . . . . . . . . . . . 1 . . . . Protection 35 | . 1 . . . 6 2 . . . 10 2 5 9 . . Artifact . | . . . . . . . . . . . . . . . . Weapon 92 | 3 2 1 . 8 28 3 . 3 . 14 . 8 16 . 6 Energy Gun 24 | 1 . . . . 5 2 . . . 3 . 4 6 . 3 Energy Cannon 3 | . . . . . . . . 1 . 1 . . 1 . . Ballistic Gun 34 | 2 2 . . 6 17 . . . . 4 . . 3 . . Ballistic Cannon 6 | . . . . . 2 . . . . . . . 3 . 1 Launcher 14 | . . 1 . 1 1 . . 1 . 4 . 3 2 . 1 Special Weapon . | . . . . . . . . . . . . . . . . Impact Weapon 2 | . . . . 1 . . . . . . . . 1 . . Slashing Weapon 9 | . . . . . 3 1 . 1 . 2 . 1 . . 1 Piercing Weapon . | . . . . . . . . . . . . . . . . Special Melee Weapon . | . . . . . . . . . . . . . . . . Unidentified Prototypes 15 | . . . . . 9 . . . . 3 . . 3 . . Parts Lost 96 | . 1 . . 2 26 8 . 1 . 20 . 6 16 1 15 Power 12 | . 1 . . . 3 . . . . 2 . 2 1 . 3 Propulsion 32 | . . . . 1 11 7 . 1 . 8 . . 2 . 2 Utility 31 | . . . . . 5 1 . . . 7 . 3 10 1 4 Weapon 21 | . . . . 1 7 . . . . 3 . 1 3 . 6 Highest Loss Streak 10 | . 1 . . 2 9 2 . 1 . 10 . 3 9 1 10 To Critical Strikes 1 | . . . . . . . . . . 1 . . . . . Average Slot Usage (%) 78 | . 99 100 91 84 85 91 92 86 84 72 86 73 75 82 49 Engine 3 | . 14 14 14 14 7 7 7 7 7 . . 4 . 4 1 Core 3 | . . . . . 1 . . . . 6 6 . . . . Treads 2 | . . . . . . . . . . 1 . 9 12 11 3 Wheel 12 | . 28 28 28 28 24 29 29 29 30 4 26 7 . . . Device 14 | . . . . . . 14 15 15 15 21 17 12 17 24 12 Storage 5 | . 14 14 13 14 8 7 7 7 7 1 6 6 6 5 5 Processor 1 | . . . . . 8 . . . . . . . 2 5 5 Protection 9 | . 13 14 6 . 8 6 7 7 7 11 3 10 8 5 1 Energy Gun 2 | . . . . . . 15 15 3 . . . 11 5 . 5 Ballistic Gun 8 | . 28 14 14 16 17 . . . . 9 . . . . . Ballistic Cannon 1 | . . . . . 2 . . . . . . . 6 . 2 Launcher 4 | . . 14 14 11 . . . . . 6 13 3 . 11 2 Slashing Weapon 3 | . . . . . 2 7 7 7 7 2 6 3 2 . . Naked Turns . | . . . . . . . . . . . . . . . . Heaviest Build 305 | 11 54 95 210 210 250 234 231 248 248 253 245 275 305 105 101 Greatest Support 135 | 20 20 20 20 22 54 52 58 58 52 52 48 135 135 130 130 Greatest Overweight (x) 78 | . 2 4 10 10 73 7 3 5 4 78 5 9 2 . 20 Average Overweight (x) 5 | . 1 3 5 9 5 4 3 3 4 9 4 2 1 . 3 Largest Inventory Capacity 35 | 8 20 25 35 35 35 35 35 35 35 35 35 35 35 20 20 Average Capacity 24 | 7 15 23 29 35 34 35 35 35 35 13 35 35 34 20 20 Most Carried 35 | 8 20 24 33 35 35 35 35 35 35 35 35 35 35 20 17 Average Carried 22 | 3 13 22 24 34 33 32 34 34 35 11 33 33 30 17 15 Final Capacity 35 | 8 20 25 35 35 35 35 35 35 35 35 35 35 20 20 20 Final Carried 35 | 8 20 24 33 35 32 35 35 35 35 35 35 35 20 17 11 Class Distribution -------------------- 44% | Hauler-Mutant 25% | Tank 8% | Hauler-Skirmisher 6% | Scavenger-Mutant 6% | Mutant 5% | Hauler-Tank Dominant Class ---------------- Mutant | -10/Materials Mutant | -10/Mines Mutant | -10/Exiles Hauler-Mutant | -9/Mines Hauler-Skirmisher | -8/Materials Hauler-Mutant | -7/Factory Hauler-Mutant | -7/Lower Caves Hauler-Mutant | -7/Lower Caves Hauler-Mutant | -7/Data Miner Tank | -6/Proximity Caves Hauler-Assassin | -6/Factory Hauler-Tank | -6/Garrison Hauler-Mutant | -6/Factory Scavenger-Tank | -5/Factory Scavenger-Skirmisher | -5/Garrison Resources | -11 -10 -10 -10 -9 -8 -7 -7 -7 -7 -6 -6 -6 -6 -5 -5 ----------- Run | Yrd Mat Min Exi Min Mat Fac Low Low Dat Pro Fac Gar Fac Fac Gar Matter Collected 6735 | 306 349 80 30 216 2557 430 20 91 . 942 . 384 1266 . 64 Remotely . | . . . . . . . . . . . . . . . . Salvage Created 9758 | 144 270 29 . 202 3121 695 155 569 . 2688 . 254 1520 . 111 Parts 424 | 9 13 3 . 9 182 23 9 9 . 64 . 20 80 . 3 Haulers Intercepted 8 | . 2 . . . 4 . . . . 1 . . 1 . . Recyclers Shooed 11 | . . . . . 6 1 . . . . . . 4 . . Parts Field Recycled . | . . . . . . . . . . . . . . . . Retrieved Matter . | . . . . . . . . . . . . . . . . Parts Self-Destructed 72 | . . . . . . . 8 6 . 58 . . . . . Prevented . | . . . . . . . . . . . . . . . . Kills | -11 -10 -10 -10 -9 -8 -7 -7 -7 -7 -6 -6 -6 -6 -5 -5 ------- Run | Yrd Mat Min Exi Min Mat Fac Low Low Dat Pro Fac Gar Fac Fac Gar Combat Hostiles Destroyed 143 | . 3 . . 8 38 6 3 3 . 33 . 15 31 . 3 Melee 3 | . . . . . . . . . . . . 2 1 . . Guns 50 | . 3 . . 3 25 6 3 . . 2 . 3 4 . 1 Cannons 33 | . . . . . 9 . . . . 6 . . 16 . 2 AOE 42 | . . . . 5 4 . . 2 . 15 . 9 7 . . Classes Destroyed 23 | 3 4 . . 1 5 2 1 1 . 4 . 1 1 . . Worker 15 | 1 . . . . 3 2 . . . . . . 9 . . Builder 10 | . . . . . 4 . . . . . . . 6 . . Tunneler 7 | 3 . 1 . . 2 1 . . . . . . . . . Hauler 8 | . 2 . . . 4 . . . . 1 . . 1 . . Recycler 15 | 1 . . . . 10 3 . . . . . . 1 . . Minesweeper 1 | . . . . . . . . . . 1 . . . . . Mechanic 1 | . . . . . . 1 . . . . . . . . . Operator 5 | . 1 . . . 2 2 . . . . . . . . . Drone 10 | . . . . . . . . . . 10 . . . . . Watcher 7 | . 1 . . . 4 . . . . . . . 2 . . Swarmer 24 | . . . . 7 4 . . 2 . 6 . 3 . . 2 Cutter 3 | . . . . . . . . . . . . 3 . . . Grunt 57 | . 3 . . . 16 2 2 . . 12 . 5 17 . . Brawler 2 | . . . . . . . . . . . . . 2 . . Duelist 2 | . . . . . . . 1 . . . . . 1 . . Protector 5 | . . . . . . . . . . 4 . 1 . . . Sentry 19 | . . . . . 7 2 . . . 4 . 1 4 . 1 Demolisher 7 | . . . . . . . . . . 6 . 1 . . . Specialist 7 | . . . . . 7 . . . . . . . . . . Hunter 5 | . . . . . 3 1 . . . . . . 1 . . Programmer 8 | . . . . . . 1 . . . 1 . . 6 . . Heavy 1 | . . . . . 1 . . . . . . . . . . Behemoth 2 | . . . . . . . . 1 . . . 1 . . . Enhanced Grunt 1 | . . . . . . . . . . 1 . . . . . Best Kill Streak 14 | 2 2 1 . 4 6 4 3 2 . 14 . 8 14 . 3 Combat Bots Only 14 | . 2 . . 4 4 3 3 2 . 14 . 8 5 . 3 Max Kills in Single Turn 6 | 2 1 1 . 2 3 1 1 2 . 4 . 3 6 . 1 Gunslinging . | . . . . . . . . . . . . . . . . Exploded 3 | . . . . 2 1 . . 2 . 3 . 3 2 . . Melee 1 | . . . . . . . . . . . . 1 1 . . Uniques/NPCs Destroyed 1 | . . . . 1 . . . . . . . . . . . YI-UF0 (-9/Mines) Combat | -11 -10 -10 -10 -9 -8 -7 -7 -7 -7 -6 -6 -6 -6 -5 -5 -------- Run | Yrd Mat Min Exi Min Mat Fac Low Low Dat Pro Fac Gar Fac Fac Gar Hostile Shots Fired 1941 | . 20 . . 26 399 169 10 30 . 191 . 303 650 12 131 Missed 595 | . 7 . . 2 143 73 4 10 . 58 . 87 185 3 23 Damage Taken 19395 | . 191 . . 351 4109 989 85 380 . 2748 . 2837 5324 131 2250 Core 2866 | . 49 . . 61 391 151 13 70 . 425 . 206 484 . 1016 Absorbed by Shields 1020 | . . . . . . . . . . . . . 1020 . . Reduced by Siege Mode 142 | . . . . . . . . . . . . 45 97 . . Redirected to Shielding 400 | . . . . . . . . . . 34 . 101 207 . 58 Ignored by Resistances 615 | . . . . . . . . . . 92 . 202 230 36 55 Regen/Repaired (Parts) 489 | . . . . . . . . . . . . . 489 . . Core Remaining (%) 41 | 100 . . . 56 28 . . . . 5 . . 18 . . Volleys Fired 616 | 13 34 1 . 24 206 41 16 9 . 83 . 43 125 . 21 Largest 3 | 2 2 1 . 2 3 2 2 2 . 3 . 3 3 . 3 Hottest 250 | 40 46 23 . 46 129 122 122 250 . 250 . 225 229 . 204 Shots Fired 1118 | 26 68 1 . 28 462 82 32 10 . 119 . 58 204 . 28 Gun 813 | 26 68 1 . 24 389 82 32 3 . 71 . 45 63 . 9 Cannon 265 | . . . . . 69 . . 3 . 40 . . 134 . 19 Launcher 40 | . . . . 4 4 . . 4 . 8 . 13 7 . . Special . | . . . . . . . . . . . . . . . . Kinetic 709 | 26 68 1 . 24 437 . . . . 47 . . 102 . 4 Thermal 368 | . . . . . 21 82 32 6 . 64 . 45 95 . 23 Explosive 40 | . . . . 4 4 . . 4 . 8 . 13 7 . . Electromagnetic 1 | . . . . . . . . . . . . . . . 1 Robot Hit Streak 21 | 4 6 4 . 4 14 16 9 3 . 13 . 14 21 . 10 Robot Miss Streak 12 | 2 5 . . 4 6 4 1 3 . 12 . 3 4 . 6 Penetration Max 1 | . . . . . 1 . . . . . . . . . . Secondary Targets . | . . . . . . . . . . . . . . . . Shots Hit Robots 732 | 18 38 1 . 17 270 53 15 14 . 111 . 39 140 . 16 Core Hits 431 | 8 16 1 . 11 103 24 7 11 . 110 . 55 79 . 6 Critical Kills 3 | . . . . . 1 . . . . . . . 2 . . Critical Parts Destroyed 4 | . . . . 1 3 . . . . . . . . . . Critical Strikes 47 | . . . . 1 11 9 1 . . 7 . 3 14 . 1 Burn 16 | . . . . . . 9 1 . . 2 . 3 1 . . Meltdown 2 | . . . . . . . . . . . . . 2 . . Destroy 4 | . . . . . 4 . . . . . . . . . . Blast 16 | . . . . . 7 . . . . . . . 8 . 1 Smash 1 | . . . . 1 . . . . . . . . . . . Sever 8 | . . . . . . . . . . 5 . . 3 . . Melee Attacks 120 | . . . . 2 8 2 . 22 . 47 . 13 25 . 1 Thermal 1 | . . . . . . . . . . . . . . . 1 Impact 7 | . . . . 2 . . . . . . . . 5 . . Slashing 112 | . . . . . 8 2 . 22 . 47 . 13 20 . . Piercing . | . . . . . . . . . . . . . . . . Sneak Attacks 19 | . . . . . 6 1 . . . 7 . . 5 . . Combat Hostiles . | . . . . . . . . . . . . . . . . Follow-up Attacks . | . . . . . . . . . . . . . . . . Damage Inflicted 26580 | 152 417 18 . 622 6569 1177 300 949 . 6133 . 2485 7239 . 519 Guns 9038 | 152 417 18 . 219 3799 1105 300 20 . 804 . 790 1301 . 113 Cannons 6901 | . . . . . 2067 . . 39 . 765 . . 3624 . 406 Explosions 6706 | . . . . 267 311 . . 349 . 2239 . 1531 2009 . . Melee 3919 | . . . . 136 392 72 . 541 . 2325 . 164 289 . . Ramming 16 | . . . . . . . . . . . . . 16 . . Kinetic 9752 | 152 417 18 . 219 5654 . . . . 396 . . 2812 . 84 Thermal 8718 | . . . . . 212 1105 300 119 . 3026 . 790 2749 . 417 Explosive 4157 | . . . . 267 311 . . 289 . 386 . 1531 1373 . . Electromagnetic 18 | . . . . . . . . . . . . . . . 18 Impact 136 | . . . . 136 . . . . . . . . . . . Slashing 3783 | . . . . . 392 72 . 541 . 2325 . 164 289 . . Piercing . | . . . . . . . . . . . . . . . . Highest Corruption 6 | . . . . . 2 2 . . . 1 . 3 5 . 6 Average Corruption 1 | . . . . . 2 1 . . . 1 . 2 2 . 1 Corruption Purged 5 | . . . . . . 2 . . . . . 3 . . . Corruption Blocked . | . . . . . . . . . . . . . . . . Effects 160 | . . . . . 22 1 . . . 92 . 15 28 . 2 Message Errors 42 | . . . . . 5 . . . . 26 . 6 4 . 1 Matter Fused 38 | . . . . . 4 . . . . 23 . 3 7 . 1 Heat Flow Errors 18 | . . . . . 2 . . . . 12 . 3 1 . . Energy Discharges 18 | . . . . . 3 1 . . . 10 . . 4 . . Parts Rejected 3 | . . . . . 2 . . . . . . . 1 . . Data Loss (minor) 16 | . . . . . 2 . . . . 8 . 1 5 . . Data Loss (major) 7 | . . . . . . . . . . 4 . 1 2 . . Misfires 10 | . . . . . 1 . . . . 7 . . 2 . . Alerts 7 | . . . . . 3 . . . . 2 . . 2 . . Weapon Failures 1 | . . . . . . . . . . . . 1 . . . Overload Shots . | . . . . . . . . . . . . . . . . Overflow Damage 969 | . . . . 158 306 . . 67 . 214 . 13 197 . 14 Projectiles 394 | . . . . 34 181 . . . . 6 . . 159 . 14 Explosions 58 | . . . . . . . . 21 . . . 13 24 . . Melee 517 | . . . . 124 125 . . 46 . 208 . . 14 . . Knockbacks 32 | . . . . . 14 . . . . . . . 18 . . Impact . | . . . . . . . . . . . . . . . . Kinetic 29 | . . . . . 12 . . . . . . . 17 . . Secondary 3 | . . . . . 2 . . . . . . . 1 . . Self-Inflicted Damage 847 | . . . . 30 15 . . 13 . 213 . 224 352 . . Shots 39 | . . . . 2 1 . . 3 . 16 . 9 8 . . Rammed 2 | . . . . . . . . . . . . . 1 . 1 Targets Rammed 2 | . . . . . . . . . . . . . 1 . 1 Kicked . | . . . . . . . . . . . . . . . . Crushed . | . . . . . . . . . . . . . . . . Highest Temperature 534 | . 101 . . . 420 32 . 124 . 534 . 442 378 . 252 Average Temperature 87 | . 53 . . . 75 15 . 60 . 153 . 136 49 . 88 Received Heat Transfer 4513 | . 111 . . . 900 339 54 36 . 288 . 888 1717 81 99 Effects 15 | . . . . . 1 . . . . 7 . 2 2 . 3 Shutdowns 5 | . . . . . 1 . . . . 4 . . . . . Energy Bleed 3 | . . . . . . . . . . . . 1 2 . . Interference 5 | . . . . . . . . . . 2 . . . . 3 Matter Decay 2 | . . . . . . . . . . 1 . 1 . . . Siege Activations 3 | . . . . . . . . . . . . 1 2 . . Total Turns 100 | . . . . . . . . . . . . 30 70 . . Longest Duration 52 | . . . . . . . . . . . . 30 52 . . Robots Corrupted . | . . . . . . . . . . . . . . . . Combat Hostiles . | . . . . . . . . . . . . . . . . Parts Fried 2 | . . . . 2 . . . . . . . . . . . Impact Corruptions 9 | . . . . 8 1 . . . . . . . . . . Robots Melted 16 | . . . . . . . . 1 . 11 . 1 3 . . Combat Hostiles 15 | . . . . . . . . 1 . 10 . 1 3 . . Parts Melted 84 | . . . . . . 9 . 2 . 53 . 1 19 . . Heat Transferred 23674 | . . . . . 407 2664 629 517 . 13522 . 2000 3543 . 392 Parts Sabotaged 7 | . . . . . . . . . . . . . . . 7 Parts Stolen . | . . . . . . . . . . . . . . . . Parts Stripped . | . . . . . . . . . . . . . . . . Power Chain Reactions . | . . . . . . . . . . . . . . . . Alert | -11 -10 -10 -10 -9 -8 -7 -7 -7 -7 -6 -6 -6 -6 -5 -5 ------- Run | Yrd Mat Min Exi Min Mat Fac Low Low Dat Pro Fac Gar Fac Fac Gar Peak Influence 1265 | 25 110 19 . 110 428 283 . . . . 45 574 1265 617 474 Initial 614 | . 16 14 . . . 171 . . . . 35 31 301 614 424 Average 203 | 9 54 13 . 41 191 149 . . . . 35 372 246 614 427 Maximum Alert Level 4 | . . . . . 2 1 . . . . . 2 4 2 2 Low Security (%) 52 | 100 100 100 . 100 51 82 . . . . 100 12 34 . . Level 1 36 | . . . . . 43 17 . . . . . 43 58 . 7 Level 2 11 | . . . . . 4 . . . . . . 44 6 100 92 Level 3 . | . . . . . . . . . . . . . . . . Level 4 . | . . . . . . . . . . . . . . . . Level 5 . | . . . . . . . . . . . . . . . . High Security . | . . . . . . . . . . . . . . . . Max Security . | . . . . . . . . . . . . . . . . Squads Dispatched 39 | . 1 . . . 13 3 . . . 1 . . 19 2 . Investigation 13 | . . . . . 4 1 . . . 1 . . 6 1 . Extermination 8 | . . . . . . 1 . . . . . . 7 . . Reinforcement 13 | . 1 . . . 8 1 . . . . . . 2 1 . Assault 3 | . . . . . 1 . . . . . . . 2 . . Garrison 2 | . . . . . . . . . . . . . 2 . . Intercept . | . . . . . . . . . . . . . . . . Searches Triggered . | . . . . . . . . . . . . . . . . Data Miner Redirects 1 | . . . . . . . . . . . . . 1 . . Construction Impeded 4 | . . . . . 2 . . . . . . . 2 . . Haulers Reinforced . | . . . . . . . . . . . . . . . . Active Scanning Responses . | . . . . . . . . . . . . . . . . Cargo Convoy Interrupts . | . . . . . . . . . . . . . . . . Stealth | -11 -10 -10 -10 -9 -8 -7 -7 -7 -7 -6 -6 -6 -6 -5 -5 --------- Run | Yrd Mat Min Exi Min Mat Fac Low Low Dat Pro Fac Gar Fac Fac Gar Distress Signals 17 | . . . . 1 5 1 . . . 10 . . . . . Communications Jammed . | . . . . . . . . . . . . . . . . Distress Signals . | . . . . . . . . . . . . . . . . Times Spotted 224 | . 9 . . 8 71 14 3 7 . 29 . 17 51 5 10 Peak Tracking Total 9 | . 2 . . 4 9 4 3 3 . 7 . 5 7 4 6 Tactical Retreats 17 | . . . . . 6 . . 3 . . . 2 5 . 1 Traps | -11 -10 -10 -10 -9 -8 -7 -7 -7 -7 -6 -6 -6 -6 -5 -5 ------- Run | Yrd Mat Min Exi Min Mat Fac Low Low Dat Pro Fac Gar Fac Fac Gar Traps Triggered 6 | . . . . . 1 . . . . 1 . 1 3 . . Indirectly . | . . . . . . . . . . . . . . . . Trap Hack Attempts . | . . . . . . . . . . . . . . . . Triggered . | . . . . . . . . . . . . . . . . Disarmed . | . . . . . . . . . . . . . . . . Reprogrammed . | . . . . . . . . . . . . . . . . Reused . | . . . . . . . . . . . . . . . . Traps Extracted . | . . . . . . . . . . . . . . . . Installed . | . . . . . . . . . . . . . . . . Triggered . | . . . . . . . . . . . . . . . . Most Traps Carried 4 | . . . . . . . . . . 4 . . . . . Machines | -11 -10 -10 -10 -9 -8 -7 -7 -7 -7 -6 -6 -6 -6 -5 -5 ---------- Run | Yrd Mat Min Exi Min Mat Fac Low Low Dat Pro Fac Gar Fac Fac Gar Machines Disabled 45 | . . . . . 7 . . 1 . 5 . 2 30 . . Max in Single Turn 19 | . . . . . 3 . . 1 . 1 . 1 19 . . Garrison Access 1 | . . . . . . . . . . . . . 1 . . Garrison Relay 1 | . . . . . . . . . . . . 1 . . . Machines Repaired . | . . . . . . . . . . . . . . . . Machines Dismantled . | . . . . . . . . . . . . . . . . Machines Sabotaged . | . . . . . . . . . . . . . . . . Overloaded Fab Kills . | . . . . . . . . . . . . . . . . Hacking | -11 -10 -10 -10 -9 -8 -7 -7 -7 -7 -6 -6 -6 -6 -5 -5 --------- Run | Yrd Mat Min Exi Min Mat Fac Low Low Dat Pro Fac Gar Fac Fac Gar Machines Accessed 36 | . 2 . 1 1 12 3 . 1 3 1 1 1 7 2 1 Terminals 19 | . 1 . . 1 10 2 . . . 1 . 1 2 . 1 Fabricators 1 | . . . . . . . . . . . . . 1 . . Repair Stations 3 | . . . . . . . . . . . . . 3 . . Recycling Units 4 | . 1 . . . 2 1 . . . . . . . . . Scanalyzers 2 | . . . . . . . . . . . . . 1 1 . Garrison Access 2 | . . . . . . . . . . . 1 . . 1 . Total Hacks 108 | . 4 . 1 2 43 5 . 1 14 3 2 2 23 5 3 Successful 71 | . 3 . 1 1 19 5 . 1 14 3 1 1 17 5 . Failed 37 | . 1 . . 1 24 . . . . . 1 1 6 . 3 Catastrophic 4 | . . . . . 3 . . . . . . . 1 . . Database Lockouts . | . . . . . . . . . . . . . . . . Manual 52 | . 1 . 2 2 34 3 . . . . . 1 6 . 3 Terminals 57 | . 1 . . 2 35 4 . . . 3 . 2 7 . 3 Fabricators 2 | . . . . . . . . . . . . . 2 . . Repair Stations 10 | . . . . . . . . . . . . . 10 . . Recycling Units 12 | . 3 . . . 8 1 . . . . . . . . . Scanalyzers 8 | . . . . . . . . . . . . . 4 4 . Garrison Access 3 | . . . . . . . . . . . 2 . . 1 . Terminal Hacks 28 | . . . 1 . 5 2 . 1 14 3 . 1 1 . . Record 16 | . . . . . 1 . . . 11 3 . . 1 . . Part Schematic 1 | . . . . . . 1 . . . . . . . . . Robot Schematic 3 | . . . . . . . . . 3 . . . . . . Open Door 1 | . . . . . . . . 1 . . . . . . . Emergency Access Points 1 | . . . . . . . . . . . . 1 . . . Terminal Index 1 | . . . . . 1 . . . . . . . . . . Alert Level 1 | . . . . . 1 . . . . . . . . . . Unreport Threat 3 | . . . . . 2 1 . . . . . . . . . Derelict Proto ID Bank 1 | . . . 1 . . . . . . . . . . . . Fabricator Hacks 2 | . . . . . . . . . . . . . 2 . . Load Schematic 1 | . . . . . . . . . . . . . 1 . . Build 1 | . . . . . . . . . . . . . 1 . . Repair Station Hacks 7 | . . . . . . . . . . . . . 7 . . Scan Component 4 | . . . . . . . . . . . . . 4 . . Repair 3 | . . . . . . . . . . . . . 3 . . Recycling Unit Hacks 9 | . 2 . . . 6 1 . . . . . . . . . Report Inventory 6 | . 1 . . . 4 1 . . . . . . . . . Retrieve Components 3 | . 1 . . . 2 . . . . . . . . . . Scanalyzer 7 | . . . . . . . . . . . . . 3 4 . Insert Component 3 | . . . . . . . . . . . . . 2 1 . Analyze 4 | . . . . . . . . . . . . . 1 3 . Garrison Access Hacks 2 | . . . . . . . . . . . 1 . . 1 . Unlock Access 2 | . . . . . . . . . . . 1 . . 1 . Unauthorized Hacks 16 | . 1 . . 1 8 2 . . . . . . 4 . . Terminals 16 | . 1 . . 1 8 2 . . . . . . 4 . . Assimilate 2 | . . . . . . . . . . . . . 2 . . Botnet 14 | . 1 . . 1 8 2 . . . . . . 2 . . Fabricators . | . . . . . . . . . . . . . . . . Repair Stations . | . . . . . . . . . . . . . . . . Recycling Units . | . . . . . . . . . . . . . . . . Scanalyzers . | . . . . . . . . . . . . . . . . Garrison Access . | . . . . . . . . . . . . . . . . Data Cores Recovered 2 | . . . . . 1 1 . . . . . . . . . Used 1 | . . . . . . 1 . . . . . . . . . Hacking Detections 23 | . . . . 1 10 1 . . . 1 1 1 6 1 1 Full Trace Events 16 | . . . . . 7 1 . . . 1 . . 5 1 1 Feedback Events 1 | . . . . . . . . . . . . . . . 1 Corruption 1 | . . . . . . . . . . . . . . . 1 Feedback Blocked . | . . . . . . . . . . . . . . . . Robot Schematics Acquired 3 | . . . . . . . . . 3 . . . . . . Robots Built . | . . . . . . . . . . . . . . . . Authchips . | . . . . . . . . . . . . . . . . Time . | . . . . . . . . . . . . . . . . Total Robot Build Rating . | . . . . . . . . . . . . . . . . Part Schematics Acquired 3 | . . . . . . 1 . . . . . . 1 1 . Parts Built 2 | . . . . . . . . . . . . . 2 . . Authchips . | . . . . . . . . . . . . . . . . Time 95 | . . . . . . . . . . . . . 95 . . Total Part Build Rating 10 | . . . . . . . . . . . . . 10 . . Parts Repaired 3 | . . . . . . . . . . . . . 3 . . Time 158 | . . . . . . . . . . . . . 158 . . Parts Recycled . | . . . . . . . . . . . . . . . . Recycled Matter . | . . . . . . . . . . . . . . . . Retrieved Matter . | . . . . . . . . . . . . . . . . Retrieved Components 28 | . 9 . . . 19 . . . . . . . . . . Parts Scanalyzed 3 | . . . . . . . . . . . . . 2 1 . Part Schematics Acquired 2 | . . . . . . . . . . . . . 1 1 . Parts Damaged 1 | . . . . . . . . . . . . . 1 . . Bothacking | -11 -10 -10 -10 -9 -8 -7 -7 -7 -7 -6 -6 -6 -6 -5 -5 ------------ Run | Yrd Mat Min Exi Min Mat Fac Low Low Dat Pro Fac Gar Fac Fac Gar Used RIF Installer . | . . . . . . . . . . . . . . . . Robots Hacked . | . . . . . . . . . . . . . . . . Non-combat . | . . . . . . . . . . . . . . . . Combat . | . . . . . . . . . . . . . . . . Robot Hacks Applied . | . . . . . . . . . . . . . . . . Relay Couplers Released 7 | . . . . . . . . . . . . 4 3 . . Machine Destruction 7 | . . . . . . . . . . . . 4 3 . . Fabnet Peak Effective % . | . . . . . . . . . . . . . . . . Robots Rewired 2 | . . . . . . . . . . 2 . . . . . Allies Hacked . | . . . . . . . . . . . . . . . . Hacks Repelled . | . . . . . . . . . . . . . . . . Allies | -11 -10 -10 -10 -9 -8 -7 -7 -7 -7 -6 -6 -6 -6 -5 -5 -------- Run | Yrd Mat Min Exi Min Mat Fac Low Low Dat Pro Fac Gar Fac Fac Gar Total Allies 5 | . . . . . . . . . . 3 . 2 . . . Largest Group 2 | . . . . . . . . . . 2 . 2 . . . Highest-Rated Group 96 | . . . . . . . . . . 96 . 89 . . . Highest-Rated Ally 96 | . . . . . . . . . . 96 . 51 . . . Total Orders . | . . . . . . . . . . . . . . . . Ally Attacks 16 | . . . . . . . . . . 5 . 11 . . . Total Damage 669 | . . . . . . . . . . 203 . 466 . . . Kills 3 | . . . . . . . . . . 1 . 2 . . . Allies Corrupted . | . . . . . . . . . . . . . . . . Allies Melted 1 | . . . . . . . . . . 1 . . . . . Intel | -11 -10 -10 -10 -9 -8 -7 -7 -7 -7 -6 -6 -6 -6 -5 -5 ------- Run | Yrd Mat Min Exi Min Mat Fac Low Low Dat Pro Fac Gar Fac Fac Gar Robot Analysis Total . | . . . . . . . . . . . . . . . . Derelict Logs Recovered 5 | . . . . 1 . . 1 2 . 1 . . . . . Drone Launches . | . . . . . . . . . . . . . . . . Drone Recoveries . | . . . . . . . . . . . . . . . . Exploration | -11 -10 -10 -10 -9 -8 -7 -7 -7 -7 -6 -6 -6 -6 -5 -5 ------------- Run | Yrd Mat Min Exi Min Mat Fac Low Low Dat Pro Fac Gar Fac Fac Gar Turns Passed 30690 | 135 692 454 708 1240 4081 808 938 2079 177 13635 136 1724 3549 95 239 Spaces Moved 10782 | 101 551 337 403 525 1618 396 634 1326 119 2934 75 649 1004 57 53 Core 1291 | 7 . . . . 1 . . . . 1274 . . . . 9 Treads 1465 | . . . . . . . . . . 1 . 359 1004 57 44 Legs 7 | . . . . . 7 . . . . . . . . . . Wheels 7937 | 94 551 337 403 525 1610 396 634 1326 119 1577 75 290 . . . Hover 82 | . . . . . . . . . . 82 . . . . . Flight . | . . . . . . . . . . . . . . . . Fastest Speed 50 | 50 80 110 80 220 160 150 140 140 150 74 150 150 157 157 157 Average Speed 252 | 77 100 132 166 220 181 155 140 148 150 446 158 232 275 157 319 Slowest Speed 3950 | 80 110 140 230 230 3700 185 140 168 150 3950 165 345 345 157 1050 Overloaded Moves . | . . . . . . . . . . . . . . . . Propulsion Burnouts . | . . . . . . . . . . . . . . . . Robots Hopped . | . . . . . . . . . . . . . . . . Cave-ins Triggered . | . . . . . . . . . . . . . . . . Exploration Rate (%) 46 | 5 47 64 63 81 75 8 69 94 75 95 1 38 17 2 12 Regions Visited 15 Branch Regions 7 Pre-discovered Areas 2 | . . . . . . . . . 1 1 . . . . . Known Exits Taken 3 | . . . . . . . . . . . 1 . 1 1 . Unknown Exits Taken 11 | 1 1 1 1 1 1 1 1 1 1 1 . . . . . Scrap Searched 15 | . . 1 . 2 . . 2 6 . 4 . . . . . Spaces Dug 16 | . . . . . 2 1 . 4 . 4 . . 5 . . Terrain Destroyed 426 | . . . . 39 51 1 . 63 . 4 . 125 142 . 1 Melee 16 | . . . . . 2 1 . 4 . 4 . . 5 . . Projectile 68 | . . . . . 40 . . . . . . . 27 . 1 AOE 342 | . . . . 39 9 . . 59 . . . 125 110 . . Terrain Rammed . | . . . . . . . . . . . . . . . . Walls Destroyed . | . . . . . . . . . . . . . . . . Machines Disabled . | . . . . . . . . . . . . . . . . Actions | -11 -10 -10 -10 -9 -8 -7 -7 -7 -7 -6 -6 -6 -6 -5 -5 --------- Run | Yrd Mat Min Exi Min Mat Fac Low Low Dat Pro Fac Gar Fac Fac Gar Total 13133 | 138 637 344 450 578 2414 509 652 1401 118 3296 97 791 1551 64 93 Wait 546 | . 1 . . 2 274 13 . . . 11 . 10 234 . 1 Move 10767 | 100 550 336 402 524 1617 395 633 1325 118 2933 74 648 1003 56 53 Hop . | . . . . . . . . . . . . . . . . Pick Up 455 | 16 28 4 29 9 132 23 1 15 . 81 7 26 79 1 4 Fast Attach 29 | . 1 . 1 . 10 1 . . . 8 . 3 3 . 2 Attach 143 | 7 1 . . 2 35 15 1 2 . 29 6 8 24 5 8 Detach 27 | . . . . . 2 3 . 2 . 10 4 1 4 1 . Swap 106 | 1 4 2 . 9 36 7 1 2 . 14 . 13 17 . . Drop 283 | 1 18 1 18 5 94 9 . 15 . 51 6 26 36 1 2 Fire 616 | 13 34 1 . 24 206 41 16 9 . 83 . 43 125 . 21 Melee 120 | . . . . 2 8 2 . 22 . 47 . 13 25 . 1 Ram 1 | . . . . . . . . . . . . . . . 1 Kick . | . . . . . . . . . . . . . . . . Crush 1 | . . . . . . . . . . . . . 1 . . Escape Stasis 8 | . . . . . . . . . . 8 . . . . . Rewire 31 | . . . . 1 . . . 9 . 21 . . . . . Trap . | . . . . . . . . . . . . . . . . Miscellaneous . | . . . . . . . . . . . . . . . . Route ------- -11/Scrapyard -10/Materials -10/Mines (discovered 3 exits: [*Mat x2] / *Exi) -10/Exiles -9/Mines -8/Materials (discovered 3 exits: *Fac x3) -7/Factory -7/Lower Caves -7/Lower Caves (discovered 2 exits: *Fac / *Dat) -7/Data Miner -6/Proximity Caves -6/Factory (discovered 4 exits: Fac / Low x2 / Gar) -6/Garrison -6/Factory -5/Factory (discovered 3 exits: Upp x2 / Gar) -5/Garrison History --------- Turn | Location | Event 9 | -11/Scrapyard | Discovered new exit (range 15) 136 | -11/Scrapyard | Entered Materials 327 | -10/Materials | Build established: Mutant 479 | -10/Materials | Discovered new exit (range 16) 828 | -10/Materials | Entered Mines 1110 | -10/Mines | Discovered new exit (range 6) 1234 | -10/Mines | Discovered new exit (range 10) 1273 | -10/Mines | Deemed a non-threat by the Exiles lab entrance 1273 | -10/Mines | Discovered new exit (range 5) 1282 | -10/Mines | Entered Exiles 1316 | -10/Exiles | Met 8R-AWN 1340 | -10/Exiles | Met EX-HEX 1385 | -10/Exiles | Met EX-BIN 1406 | -10/Exiles | Aligned with FarCom system 1407 | -10/Exiles | Given EX-Vault access code 1442 | -10/Exiles | Opened EX-Vault 1469 | -10/Exiles | Found Firepult 1498 | -10/Exiles | Warned to stay clear of 0b10 Research branches 1542 | -10/Exiles | Met EX-DEC 1965 | -10/Exiles | Build established: Hauler-Mutant 1965 | -10/Exiles | Discovered new exit (range 12) 1990 | -10/Exiles | Left Exiles lab with Firepult 1990 | -10/Exiles | Entered Mines 2206 | -9/Mines | Learned Materials emergency access door positions 2690 | -9/Mines | Destroyed YI-UF0 3210 | -9/Mines | Discovered new exit (range 6) 3230 | -9/Mines | Entered Materials 3230 | -8/Materials | Evolved 4 slots: Propulsion x1, Utility x2, Weapon x1 3519 | -8/Materials | Build established: Hauler-Skirmisher 4168 | -8/Materials | Discovered new exit (range 5) 5515 | -8/Materials | Discovered new exit (range 4) 5665 | -8/Materials | Lost 3 parts (2n1w) 6176 | -8/Materials | Lost 9 parts (1p2n3u3w) 6335 | -8/Materials | Build established: Hauler-Mutant 6807 | -8/Materials | Core integrity fell below 50% 7230 | -8/Materials | First assault squad dispatched 7306 | -8/Materials | Discovered new exit (range 3) 7308 | -8/Materials | Lost 4 parts (1p1n1u1w) 7311 | -8/Materials | Entered Factory 7311 | -7/Factory | Evolved 2 slots: Propulsion x1, Utility x1 8021 | -7/Factory | Discovered new exit (range 7) 8119 | -7/Factory | Entered Lower Caves 8419 | -7/Lower Caves | Learned Factory emergency access door positions 8559 | -7/Lower Caves | Discovered new exit (range 6) 8644 | -7/Lower Caves | Encountered a Warlord checkpoint 9057 | -7/Lower Caves | Entered another Lower Caves area 9088 | -7/Lower Caves | Discovered new exit (range 7) 9258 | -7/Lower Caves | Learned 8 Factory zone layouts 9641 | -7/Lower Caves | Spotted B-75 Beast 9713 | -7/Lower Caves | Destroyed B-75 Beast 10665 | -7/Lower Caves | Learned Factory terminal intel 10854 | -7/Lower Caves | Discovered new exit (range 10) 11136 | -7/Lower Caves | Entered Data Miner 11136 | -7/Data Miner | Discovered new exit (range 6) 11172 | -7/Data Miner | Met Data Miner 11223 | -7/Data Miner | Learned location of Section 7 (-3) 11223 | -7/Data Miner | Acquired the access code to Warlord's prototype stash 11264 | -7/Data Miner | Received God Mode back door access code from Data Miner 11313 | -7/Data Miner | Entered Proximity Caves 11512 | -6/Proximity Caves | Attracted the attention of an 0b10 base 11525 | -6/Proximity Caves | Escorted by Enhanced Grunt 11551 | -6/Proximity Caves | Destroyed 14 combat bots 11557 | -6/Proximity Caves | Lost 9 parts (1p4n3u1w) 12446 | -6/Proximity Caves | Attracted the attention of an 0b10 checkpoint 12557 | -6/Proximity Caves | Core integrity fell below 50% 12808 | -6/Proximity Caves | Core integrity fell below 20% 12851 | -6/Proximity Caves | Lost 10 parts (1p4n3u2w) 13031 | -6/Proximity Caves | Lost 3 allies 13258 | -6/Proximity Caves | Build established: Tank 15332 | -6/Proximity Caves | Discovered new exit (range 16) 16261 | -6/Proximity Caves | Lost 3 allies 21061 | -6/Proximity Caves | Build established: Scavenger-Mutant 22691 | -6/Proximity Caves | Murdered 4 allies 23129 | -6/Proximity Caves | Build established: Hauler-Mutant 24739 | -6/Proximity Caves | Found Prototype Launcher 24742 | -6/Proximity Caves | Found Prototype Launcher 24743 | -6/Proximity Caves | Identified Rocket Array (x2) 24948 | -6/Proximity Caves | Entered Factory 24948 | -6/Factory | Evolved 2 slots: Utility x2 24949 | -6/Factory | Identified exit to Lower Caves 24950 | -6/Factory | Identified exit to Factory 24952 | -6/Factory | Loaded intel: 26 terminal locations 25082 | -6/Factory | Identified exit to Garrison 25084 | -6/Factory | Entered Garrison 25256 | -6/Garrison | Build established: Hauler-Assassin 25282 | -6/Garrison | Triggered checkpoint 25283 | -6/Garrison | Triggered checkpoint 25322 | -6/Garrison | Destroyed 8 combat bots 25497 | -6/Garrison | Discovered new exit (range 13) 25511 | -6/Garrison | Rescued a captive Derelict 25512 | -6/Garrison | Rescued a captive Derelict 25610 | -6/Garrison | Spotted B-75 Beast 25838 | -6/Garrison | Lost 3 parts (1p1u1w) 25847 | -6/Garrison | Destroyed B-75 Beast 25970 | -6/Garrison | Triggered checkpoint 25980 | -6/Garrison | Build established: Hauler-Mutant 26310 | -6/Garrison | Build established: Hauler-Tank 26590 | -6/Garrison | Garrison Relay disabled 26808 | -6/Garrison | Entered Factory 26926 | -6/Factory | Build established: Hauler-Mutant 27687 | -6/Factory | Repaired Humpback 28461 | -6/Factory | Core integrity fell below 50% 28512 | -6/Factory | Lost 9 parts (1p2n4u2w) 28773 | -6/Factory | Build established: Hauler-Tank 28910 | -6/Factory | Fabricated Focal Shield (x2) 29399 | -6/Factory | Found Prototype Processor 29400 | -6/Factory | Identified Exp. Targeting Computer 29553 | -6/Factory | Build established: Hauler-Mutant 29819 | -6/Factory | Repaired Plasma Rifle 29915 | -6/Factory | Repaired Broken Particle Reactor 29967 | -6/Factory | Discovered exit to Factory (range 7) 30177 | -6/Factory | Garrison activated, responded to threat 30216 | -6/Factory | Lost 3 parts (3u) 30341 | -6/Factory | First assault squad dispatched 30345 | -6/Factory | Incoming assault squad redirected 30356 | -6/Factory | Core integrity fell below 20% 30357 | -6/Factory | Entered another Factory area 30357 | -5/Factory | Evolved 2 slots: Power x1, Utility x1 30358 | -5/Factory | Identified exit to Upper Caves 30451 | -5/Factory | Identified exit to Garrison 30452 | -5/Factory | Entered Garrison 30574 | -5/Garrison | Lost 10 parts (2p2n3u3w) 30671 | -5/Garrison | Core integrity fell below 50% 30683 | -5/Garrison | Core integrity fell below 20% 30691 | -5/Garrison | Destroyed by C-35 Carver with Carbide Saw Last Messages --------------- 30656_ Extracted 10 energy. 30656_ Acquired Energy Well. 30657_ Hvy. Proton Missile Launcher blown off. 30657_ Linear Accelerator blown off. 30657_ Graphene Brace blown off. 30657_ E-15 Imp destroyed. 30658_ Hvy. Laser destroyed. 30659_ Imp. Treads blown off. 30659_ Armor Integrity Analyzer blown off. 30659_ Energy Well blown off. 30659_ Exp. Optical Array blown off. 30659_ E-15 Imp destroyed. 30661_ Hpw. Shock Rifle destroyed. 30662_ Acquired 17 matter. 30676_ Acquired Segregator. 30685_ Segregator severed. 30688_ Slammed into C-35 Carver. 30688_ Destabilizing: System corrupted (+2). 30690_ System corrupted: Matter fused (-8). [Achievement: Achiever] Map ----- +----------------------------------------------------+ | ???????????????????????? #??????????????????????? | | ???????????????????????? #??????????????????????? | | ???????????????????????# #??????????????????????? | | ????????######?????????# #??????????????????????? | | ????????# #?????????# #??????????????????????? | | ????????# #?????????# #??????????????????????? | | ????????# #?????????# #??????????????????????? | | ????????### #?????????" "??????????????????????? | | ??????????# #?????????" "??????????????????????? | | ??????????# #?????????" "??????????????????????? | | ??????????# #?????????# #??????????????????????? | | ??????????# #?????????# #??????????????????????? | | ??????????# ########### ###########????????????? | | ??????????# #????????????? | | ??????????# #????????????? | | ??????????############## ######## #????????????? | | ???????????????????????# #??????????????????????? | | ???????????????????????# #??????????????????????? | | ???????????????????????# #????#?????????????????? | | ???????????????????????# #### ###???????????????? | | ???????????????????????# +%% #???????????????? | | ???????????????????????# ### ## #???????????????? | | ??????????????????????## # # #???? ##""""## #??? | | ??????????????????????# =!=# ### | | ??????????????????????##=c=]] | | ???????????????????????#c@c!! #?? | | ???????????????????????# /c ### ## ## #?? | | ??????????????????????# # # #?????#????????????? | | ??????????????????????### #####??????????????????? | | ????????????????????????# ??????????????????????? | | ????????????????????????###????s?????????????????? | | ???????????????????????????????s?????????????????? | | ?????????????????????????????????????????????????? | | ?????????????????????????????????????????????????? | | ?????????????????????????????????????????????????? | | ?????????????????????????????????????????????????? | | ?????????????????????????????????????????????????? | | ?????????????????????????????????????????????????? | | ?????????????????????????????????????????????????? | | ?????????????????????????????????????????????????? | | ?????????????????????????????????????????????????? | | ?????????????????????????????????????????????????? | | ?????????????????????????????????????????????????? | | ?????????????????????????????????????????????????? | | ?????????????????????????????????????????????????? | | ?????????????????????????????????????????????????? | | ?????????????????????????????????????????????????? | | ?????????????????????????????????????????????????? | | ?????????????????????????????????????????????????? | | ?????????????????????????????????????????????????? | +----------------------------------------------------+ Best States ------------- Heat Dissipation 78 Energy Generation 36 Energy Capacity 390 Matter Stores 300 Matter Capacity 300 Sight Range 23 Robot Scan Range 15 Terrain Scan Range 24 Terrain Scan Density 10 Jamming Range 14 Base Temperature (-) 100 Armor Coverage 1650 Resistance: KI 30 Resistance: TH 20 Resistance: EM 20 Core Shielding 30 Propulsion Shielding 66 Utility Shielding 66 Weapon Shielding 66 Evasion (%) 50 Armor Integrity Analysis 30 Recoil Reduction 4 Kinecelleration 30 Salvage Targeting 2 Offensive Hacking 12 Item Schematics ----------------- Focal Shield | -7/Factory | Hacked Quantum Rifle | -6/Factory | Scanalyzed Graphene Brace | -5/Factory | Scanalyzed Robot Schematics ------------------ M-22 Extractor | -7/Data Miner | Free B-48 Gladiator | -7/Data Miner | Free S-27 Virus | -7/Data Miner | Free Fabricated ------------ Focal Shield | x2 | -6/Factory Alien Tech Used ----------------- None Achievements -------------- A New Friend Achiever Close Call Collateral Damage It Was An Accident, I Swear Leap Before You Look Respectable Loadout The Oracle Turtlemind Challenges ------------ None Game ------ Seed SmartbombLinearNetwork Manual? 0 Play Time 05:04:14 Cumulative 38.4 hours Start 2024.04.10 @ 20:41:28 End 2024.04.11 @ 20:13:24 Sessions 7 Manual Loads 0 Difficulty Rogue Special Mode None Game No. 37 Rogue 37 Adventurer 0 Explorer 0 Win Type - Total 0 Types 0/0/0/0/0/0/0/0/0 Lore% 16 Gallery% 33 Achievement% 25 Wizard Run 0 Options --------- Layout 1 ASCII 0 Keyboard 1 Movement Vi Keybinds 0 Fullscreen 1 Font 24/Smallcaps Map View 50x35 Zoom Use 0% Tactical HUD 1 Map Filters NONE Filters NONE Steam 1 RUN: e8ab2b92-ec66-4465-9ae4-2abea759e10b